[Event "GER-ch Youth U12w 2019"]
[Site "Willingen"]
[Date "2019.06.09"]
[Round "1.1"]
[White "Zhou, Lepu Coco"]
[Black "Sohr, Luna"]
[Result "1-0"]
[ECO "C67"]
[WhiteElo "1724"]
[BlackElo "1357"]
[Annotator "NA"]
[PlyCount "59"]
[EventDate "2019.06.07"]
[EventType "swiss"]
[EventRounds "9"]
[EventCountry "GER"]
[SourceTitle "playchess.com"]
[Source "ChessBase"]
[SourceQuality "1"]
[TimeControl "40/4500+30:900+30"]

1. e4 {[%emt 0:00:00]} e5 {[%emt 0:00:00]} 2. Nf3 {[%emt 0:00:00]} Nc6 {[%emt 0:00:00]} 3. Bb5 {[%emt 0:00:00]} Nf6 {[%emt 0:00:00]} 4. O-O {[%emt 0:00:00]} Nxe4 {[%emt 0:00:00]} 5. d4 {[%emt 0:00:00]} Be7 {[%emt 0:00:00]} 6. d5 {[%emt 0:00:00]} Nd4 {[%emt 0:06:52]} 7. Nxd4 {[%emt 0:00:00]} exd4 {[%emt 0:01:55]} 8. Qxd4 {[%emt 0:00:00]} Nf6 {[%emt 0:04:31]} 9. Bf4 {[%emt 0:00:00]} a6 {[%emt 0:05:51]} 10. d6 {[%emt 0:02:37]} cxd6 {[%emt 0:05:15]} 11. Bc4 {[%emt 0:00:29]} O-O {[%emt 0:04:05]} 12. Nc3 {[%emt 0:04:58]} b5 {[%emt 0:05:13]} 13. Bd5 {[%emt 0:02:59]} Nxd5 {[%emt 0:06:44]} 14. Nxd5 {[%emt 0:01:18]} Bf6 {[%emt 0:03:07]} 15. Qb4 {[%emt 0:00:40]} Be5 {[%emt 0:05:13]} 16. Bxe5 {[%emt 0:02:30]} dxe5 {[%emt 0:01:58]} 17. Qd6 {[%emt 0:01:33]} Bb7 {[%emt 0:04:31]} 18. Qxe5 {[%emt 0:02:33]} Bxd5 {[%emt 0:01:35]} 19. Qxd5 {[%emt 0:00:09]} Rc8 {[%emt 0:02:17]} 20. c3 {[%emt 0:00:22]} d6 {[%emt 0:03:37]} 21. Rad1 {[%emt 0:00:11]} Re8 {[%emt 0:02:35]} 22. Rfe1 {[%emt 0:01:16]} Rxe1+ {[%emt 0:02:15]} 23. Rxe1 {[%emt 0:00:18]} Rc5 {[%emt 0:01:56]} 24. Qd4 {[%emt 0:02:53]} h6 {[%emt 0:02:03]} 25. h3 {[%emt 0:00:10]} Rc4 {[%emt 0:01:49]} 26. Qa7 {[%emt 0:01:35]} Rc6 {[%emt 0:03:00]} 27. Re7 {[%emt 0:03:23]} d5 {[%emt 0:03:43]} 28. Rxf7 {[%emt 0:04:05]} Rg6 {[%emt 0:01:46]} 29. Re7 {[%emt 0:04:15]} Qc8 {[%emt 0:01:31]} 30. Qd7 {[%emt 0:02:27] normal} 1-0

[Event "GER-ch Youth U12w 2019"]
[Site "Willingen"]
[Date "2019.06.09"]
[Round "1.2"]
[White "Nikolaeva, Alexandra G."]
[Black "Peglau, Charis"]
[Result "1-0"]
[ECO "B15"]
[WhiteElo "2016"]
[BlackElo "1514"]
[Annotator "NA"]
[PlyCount "169"]
[EventDate "2019.06.07"]
[EventType "swiss"]
[EventRounds "9"]
[EventCountry "GER"]
[SourceTitle "playchess.com"]
[Source "ChessBase"]
[SourceQuality "1"]
[TimeControl "40/4500+30:900+30"]

1. e4 {[%emt 0:00:00]} c6 {[%emt 0:00:00]} 2. d4 {[%emt 0:00:00]} d5 {[%emt 0:00:00]} 3. Nc3 {[%emt 0:00:00]} dxe4 {[%emt 0:00:00]} 4. Nxe4 {[%emt 0:00:00]} Nf6 {[%emt 0:00:00]} 5. Nxf6+ {[%emt 0:00:00]} exf6 {[%emt 0:00:00]} 6. Nf3 {[%emt 0:00:00]} Bd6 {[%emt 0:00:00]} 7. Bc4 {[%emt 0:00:00]} O-O {[%emt 0:00:00]} 8. Be3 {[%emt 0:00:20]} Re8 {[%emt 0:00:00]} 9. Qd3 {[%emt 0:02:33]} Qc7 {[%emt 0:00:00]} 10. O-O-O {[%emt 0:02:21]} b5 {[%emt 0:00:00]} 11. Bb3 {[%emt 0:00:56]} a5 {[%emt 0:00:00]} 12. c4 {[%emt 0:08:29]} bxc4 {[%emt 0:00:00]} 13. Bxc4 {[%emt 0:03:10]} Ba6 {[%emt 0:00:00]} 14. Nd2 {[%emt 0:04:45]} c5 {[%emt 0:00:00]} 15. dxc5 {[%emt 0:08:55]} Bxc5 {[%emt 0:00:00]} 16. Bxc5 {[%emt 0:00:09]} Qxc5 {[%emt 0:00:00]} 17. Qd5 {[%emt 0:07:34]} Qxd5 {[%emt 0:06:04]} 18. Bxd5 {[%emt 0:00:10]} Ra7 {[%emt 0:00:06]} 19. b3 {[%emt 0:02:37]} Rc7+ {[%emt 0:01:32]} 20. Kb2 {[%emt 0:02:23]} Re2 {[%emt 0:01:17]} 21. Rhe1 {[%emt 0:05:37]} Rce7 {[%emt 0:00:11]} 22. Rxe2 {[%emt 0:00:32]} Rxe2 {[%emt 0:00:05]} 23. Bf3 {[%emt 0:00:27]} Rxf2 {[%emt 0:01:12]} 24. Kc3 {[%emt 0:01:09]} Nd7 {[%emt 0:01:34]} 25. Ne4 {[%emt 0:01:37]} Rxf3+ {[%emt 0:08:32]} 26. gxf3 {[%emt 0:00:12]} Nf8 {[%emt 0:02:02]} 27. Rd5 {[%emt 0:01:44]} Be2 {[%emt 0:08:37]} 28. Nd2 {[%emt 0:00:29]} a4 {[%emt 0:01:57]} 29. bxa4 {[%emt 0:00:11]} Ne6 {[%emt 0:01:38]} 30. a5 {[%emt 0:00:47]} Kf8 {[%emt 0:01:55]} 31. Rd6 {[%emt 0:01:22]} Ke7 {[%emt 0:00:12]} 32. Rb6 {[%emt 0:00:55]} Nc5 {[%emt 0:00:41]} 33. Kd4 {[%emt 0:01:03]} Ne6+ {[%emt 0:01:06]} 34. Ke3 {[%emt 0:01:10]} Bd1 {[%emt 0:00:53]} 35. a6 {[%emt 0:00:28]} Nc7 {[%emt 0:02:21]} 36. Rb7 {[%emt 0:01:49]} Kd6 {[%emt 0:00:40]} 37. a7 {[%emt 0:00:37]} Na8 {[%emt 0:01:15]} 38. Rb8 {[%emt 0:01:23]} Nc7 {[%emt 0:00:25]} 39. a8=Q {[%emt 0:01:09]} Nxa8 {[%emt 0:00:22]} 40. Rxa8 {[%emt 0:00:07]} f5 {[%emt 0:00:29]} 41. Rb8 {[%emt 0:16:08]} g5 {[%emt 0:15:22]} 42. Nc4+ {[%emt 0:00:54]} Kc7 {[%emt 0:00:40]} 43. Rb1 {[%emt 0:00:18]} f4+ {[%emt 0:00:43]} 44. Kf2 {[%emt 0:00:29]} Ba4 {[%emt 0:00:16]} 45. Nb6 {[%emt 0:00:34]} Bc6 {[%emt 0:00:39]} 46. a4 {[%emt 0:00:16]} Kb7 {[%emt 0:00:45]} 47. Nc4+ {[%emt 0:00:28]} Ka7 {[%emt 0:00:19]} 48. a5 {[%emt 0:00:21]} h5 {[%emt 0:01:05]} 49. Ne5 {[%emt 0:00:40]} Bd5 {[%emt 0:00:24]} 50. Ke2 {[%emt 0:00:19]} f6 {[%emt 0:01:45]} 51. Nd3 {[%emt 0:00:45]} f5 {[%emt 0:00:40]} 52. Rg1 {[%emt 0:01:57]} g4 {[%emt 0:01:05]} 53. fxg4 {[%emt 0:00:08]} f3+ {[%emt 0:00:20]} 54. Kf2 {[%emt 0:00:19]} fxg4 {[%emt 0:00:49]} 55. Nf4 {[%emt 0:00:57]} Bf7 {[%emt 0:01:07]} 56. Re1 {[%emt 0:00:16]} Ka6 {[%emt 0:00:07]} 57. Re5 {[%emt 0:00:27]} h4 {[%emt 0:00:55]} 58. Rg5 {[%emt 0:00:35]} g3+ {[%emt 0:01:19]} 59. hxg3 {[%emt 0:00:19]} hxg3+ {[%emt 0:00:16]} 60. Kxg3 {[%emt 0:00:09]} Bc4 {[%emt 0:02:26]} 61. Kxf3 {[%emt 0:00:44]} Bb5 {[%emt 0:00:23]} 62. Ne6 {[%emt 0:00:51]} Bc4 {[%emt 0:02:07]} 63. Nc7+ {[%emt 0:00:32]} Kb7 {[%emt 0:00:56]} 64. Rc5 {[%emt 0:01:11]} Bf1 {[%emt 0:01:03]} 65. Ke3 {[%emt 0:01:57]} Bg2 {[%emt 0:01:13]} 66. Kd4 {[%emt 0:00:17]} Bf1 {[%emt 0:01:27]} 67. Kc3 {[%emt 0:03:47]} Be2 {[%emt 0:01:30]} 68. Kd2 {[%emt 0:01:38]} Bf1 {[%emt 0:00:16]} 69. Ke1 {[%emt 0:00:23]} Bd3 {[%emt 0:00:42]} 70. Kf2 {[%emt 0:00:08]} Be4 {[%emt 0:00:42]} 71. Ke3 {[%emt 0:00:19]} Bg2 {[%emt 0:00:41]} 72. Kf4 {[%emt 0:00:04]} Bf1 {[%emt 0:00:28]} 73. Ke5 {[%emt 0:00:10]} Be2 {[%emt 0:00:51]} 74. Kd6 {[%emt 0:00:08]} Bf3 {[%emt 0:02:26]} 75. a6+ {[%emt 0:01:31]} Ka7 {[%emt 0:01:42]} 76. Ra5 {[%emt 0:02:50]} Be4 {[%emt 0:02:56]} 77. Kc5 {[%emt 0:02:14]} Bb7 {[%emt 0:06:44]} 78. axb7+ {[%emt 0:00:15]} Kxb7 {[%emt 0:00:04]} 79. Ra6 {[%emt 0:00:30]} Kxc7 {[%emt 0:01:35]} 80. Ra7+ {[%emt 0:00:13]} Kb8 {[%emt 0:00:16]} 81. Rh7 {[%emt 0:00:10]} Kc8 {[%emt 0:00:08]} 82. Kd6 {[%emt 0:00:06]} Kb8 {[%emt 0:00:10]} 83. Kc6 {[%emt 0:00:05]} Ka8 {[%emt 0:00:08]} 84. Kb6 {[%emt 0:00:06]} Kb8 {[%emt 0:00:06]} 85. Rh8# {[%emt 0:00:12] normal} 1-0

[Event "GER-ch Youth U12w 2019"]
[Site "Willingen"]
[Date "2019.06.09"]
[Round "1.3"]
[White "Pohle, Saskia"]
[Black "von Beckh, Frieda"]
[Result "1-0"]
[ECO "B35"]
[WhiteElo "1819"]
[BlackElo "1465"]
[Annotator "NA"]
[PlyCount "75"]
[EventDate "2019.06.07"]
[EventType "swiss"]
[EventRounds "9"]
[EventCountry "GER"]
[SourceTitle "playchess.com"]
[Source "ChessBase"]
[SourceQuality "1"]
[TimeControl "40/4500+30:900+30"]

1. e4 {[%emt 0:00:00]} c5 {[%emt 0:00:00]} 2. Nf3 {[%emt 0:00:00]} Nc6 {[%emt 0:00:00]} 3. d4 {[%emt 0:00:00]} cxd4 {[%emt 0:00:00]} 4. Nxd4 {[%emt 0:00:00]} g6 {[%emt 0:00:00]} 5. Nc3 {[%emt 0:00:00]} Bg7 {[%emt 0:00:00]} 6. Be3 {[%emt 0:00:00]} Nf6 {[%emt 0:00:00]} 7. Bc4 {[%emt 0:00:00]} O-O {[%emt 0:00:00]} 8. Bb3 {[%emt 0:00:00]} d6 {[%emt 0:00:00]} 9. f3 {[%emt 0:00:00]} Bd7 {[%emt 0:00:00]} 10. Qd2 {[%emt 0:00:00]} Nxd4 {[%emt 0:00:00]} 11. Bxd4 {[%emt 0:00:00]} Bc6 {[%emt 0:00:00]} 12. O-O-O {[%emt 0:00:00]} Nd7 {[%emt 0:00:00]} 13. Bxg7 {[%emt 0:00:00]} Kxg7 {[%emt 0:00:00]} 14. g4 {[%emt 0:00:00]} Ne5 {[%emt 0:00:00]} 15. Qe2 {[%emt 0:00:00]} f5 {[%emt 0:00:00]} 16. gxf5 {[%emt 0:00:00]} gxf5 {[%emt 0:00:00]} 17. Rhg1+ {[%emt 0:00:00]} Kh8 {[%emt 0:00:00]} 18. Qg2 {[%emt 0:00:05]} Ng6 {[%emt 0:00:00]} 19. Qh3 {[%emt 0:02:02]} Rf6 {[%emt 0:00:00]} 20. exf5 {[%emt 0:04:09]} Ne5 {[%emt 0:00:00]} 21. f4 {[%emt 0:07:56]} Nf3 {[%emt 0:00:00]} 22. Rg3 {[%emt 0:01:17]} Qf8 {[%emt 0:00:00]} 23. Rg8+ {[%emt 0:06:03]} Qxg8 {[%emt 0:00:00]} 24. Bxg8 {[%emt 0:00:10]} Rxg8 {[%emt 0:00:00]} 25. b4 {[%emt 0:05:22]} a6 {[%emt 0:00:00]} 26. a4 {[%emt 0:01:03]} b6 {[%emt 0:00:00]} 27. Nd5 {[%emt 0:02:16]} Bxd5 {[%emt 0:00:00]} 28. Rxd5 {[%emt 0:00:25]} Ng1 {[%emt 0:00:00]} 29. Qe3 {[%emt 0:03:21]} Rg7 {[%emt 0:01:38]} 30. Rd1 {[%emt 0:01:22]} Ne2+ {[%emt 0:01:23]} 31. Qxe2 {[%emt 0:00:34]} Rxf5 {[%emt 0:00:10]} 32. Qc4 {[%emt 0:01:56]} Rgf7 {[%emt 0:00:29]} 33. Qc3+ {[%emt 0:00:57]} R7f6 {[%emt 0:00:29]} 34. Qc8+ {[%emt 0:03:31] normal} Rf8 {[%emt 0:00:51]} 35. Qxa6 {[%emt 0:01:07] normal} Rxf4 {[%emt 0:00:13] normal} 36. Qxb6 {[%emt 0:00:48]} Rf2 {[%emt 0:00:39] normal} 37. Qe3 {[%emt 0:01:01]} R8f7 {[%emt 0:00:21] normal} 38. a5 {[%emt 0:01:39] normal} 1-0

[Event "GER-ch Youth U12w 2019"]
[Site "Willingen"]
[Date "2019.06.09"]
[Round "1.4"]
[White "Stepanjan, Marianne"]
[Black "Sereda, Yaroslava"]
[Result "0-1"]
[ECO "B13"]
[WhiteElo "1312"]
[BlackElo "1626"]
[Annotator "NA"]
[PlyCount "138"]
[EventDate "2019.06.07"]
[EventType "swiss"]
[EventRounds "9"]
[EventCountry "GER"]
[SourceTitle "playchess.com"]
[Source "ChessBase"]
[SourceQuality "1"]
[TimeControl "40/4500+30:900+30"]

1. e4 {[%emt 0:00:00]} c6 {[%emt 0:00:00]} 2. d4 {[%emt 0:00:00]} d5 {[%emt 0:00:00]} 3. exd5 {[%emt 0:00:00]} cxd5 {[%emt 0:00:00]} 4. c4 {[%emt 0:00:00]} Nf6 {[%emt 0:00:00]} 5. Nc3 {[%emt 0:00:00]} Nc6 {[%emt 0:00:00]} 6. Nf3 {[%emt 0:00:00]} Bg4 {[%emt 0:00:00]} 7. Be3 {[%emt 0:01:37]} dxc4 {[%emt 0:11:32]} 8. d5 {[%emt 0:10:37]} Bxf3 {[%emt 0:04:08]} 9. gxf3 {[%emt 0:02:04]} Ne5 {[%emt 0:04:44]} 10. Bxc4 {[%emt 0:06:03]} Nxc4 {[%emt 0:03:08]} 11. Qa4+ {[%emt 0:00:11]} Qd7 {[%emt 0:01:15]} 12. Qxc4 {[%emt 0:00:11]} Rc8 {[%emt 0:01:15]} 13. Qb3 {[%emt 0:07:40]} a6 {[%emt 0:08:27]} 14. Rd1 {[%emt 0:06:52]} b5 {[%emt 0:09:09]} 15. a4 {[%emt 0:06:56]} bxa4 {[%emt 0:16:16]} 16. Nxa4 {[%emt 0:02:40]} Qb5 {[%emt 0:01:29]} 17. Qxb5+ {[%emt 0:01:27]} axb5 {[%emt 0:00:01]} 18. Nb6 {[%emt 0:05:26]} Rb8 {[%emt 0:05:15]} 19. Rc1 {[%emt 0:04:38]} Rd8 {[%emt 0:06:19]} 20. Rd1 {[%emt 0:04:44]} Nd7 {[%emt 0:04:16]} 21. O-O {[%emt 0:06:22]} Nxb6 {[%emt 0:01:52]} 22. Bxb6 {[%emt 0:00:07]} Rb8 {[%emt 0:00:43]} 23. Bd4 {[%emt 0:02:43]} Rd8 {[%emt 0:01:30]} 24. Bc3 {[%emt 0:00:51]} Rg8 {[%emt 0:00:53]} 25. Rfe1 {[%emt 0:01:24]} g6 {[%emt 0:00:38]} 26. d6 {[%emt 0:02:02]} e6 {[%emt 0:00:52]} 27. Bb4 {[%emt 0:01:20]} Bg7 {[%emt 0:01:02]} 28. b3 {[%emt 0:01:40]} Kd7 {[%emt 0:00:32]} 29. Rc1 {[%emt 0:04:34]} Rc8 {[%emt 0:00:12]} 30. Bc5 {[%emt 0:01:19]} Rc6 {[%emt 0:00:51]} 31. Bb4 {[%emt 0:01:07]} Rgc8 {[%emt 0:00:44]} 32. Rxc6 {[%emt 0:02:11]} Rxc6 {[%emt 0:00:22]} 33. Rd1 {[%emt 0:01:27]} Be5 {[%emt 0:00:25]} 34. Kg2 {[%emt 0:00:09]} Bxd6 {[%emt 0:00:58]} 35. Kh3 {[%emt 0:01:25]} Ke7 {[%emt 0:00:39]} 36. Bxd6+ {[%emt 0:00:20]} Rxd6 {[%emt 0:00:07]} 37. Ra1 {[%emt 0:00:27]} Rd3 {[%emt 0:00:29]} 38. Ra7+ {[%emt 0:00:30]} Kf6 {[%emt 0:00:10]} 39. b4 {[%emt 0:00:55]} Rxf3+ {[%emt 0:00:08]} 40. Kg4 {[%emt 0:01:44]} Rb3 {[%emt 0:00:08]} 41. Kf4 {[%emt 0:15:56]} Rxb4+ {[%emt 0:15:11]} 42. Ke3 {[%emt 0:00:36]} Rb1 {[%emt 0:00:31]} 43. Kd2 {[%emt 0:00:38]} b4 {[%emt 0:00:16]} 44. Rb7 {[%emt 0:00:25]} b3 {[%emt 0:00:10]} 45. Kc3 {[%emt 0:00:14]} Rc1+ {[%emt 0:00:42]} 46. Kb2 {[%emt 0:00:00]} Rc2+ {[%emt 0:00:00]} 47. Kxb3 Rxf2 {[%emt 0:00:00]} 48. h4 {[%emt 0:00:00]} Rf4 {[%emt 0:00:00]} 49. h5 {[%emt 0:00:00]} Rf1 {[%emt 0:00:00]} 50. Kc2 {[%emt 0:00:00]} g5 {[%emt 0:00:00]} 51. Rb3 {[%emt 0:00:00]} Rh1 {[%emt 0:00:00]} 52. Rf3+ {[%emt 0:00:00]} Kg7 53. h6+ {[%emt 0:00:00]} Rxh6 {[%emt 0:00:00]} 54. Rg3 {[%emt 0:00:00]} Kg6 {[%emt 0:00:00]} 55. Kd3 {[%emt 0:00:00]} f5 {[%emt 0:00:00]} 56. Kd4 {[%emt 0:00:00]} Kf6 {[%emt 0:00:00]} 57. Kc5 {[%emt 0:00:00]} e5 {[%emt 0:00:00]} 58. Rd3 {[%emt 0:00:00]} Ke7 {[%emt 0:00:00]} 59. Ra3 {[%emt 0:00:00]} Rd6 {[%emt 0:00:00]} 60. Ra7+ {[%emt 0:00:00]} Rd7 {[%emt 0:00:00]} 61. Ra8 {[%emt 0:00:00]} Kf7 {[%emt 0:00:00]} 62. Rh8 {[%emt 0:00:00]} Kg7 {[%emt 0:00:00]} 63. Rc8 {[%emt 0:00:00]} g4 {[%emt 0:00:00]} 64. Kc6 {[%emt 0:00:00]} Rf7 {[%emt 0:00:00]} 65. Kd6 {[%emt 0:00:00]} e4 {[%emt 0:00:00]} 66. Ke6 {[%emt 0:00:00]} f4 {[%emt 0:00:00]} 67. Rc5 {[%emt 0:00:00]} h6 68. Ke5 {[%emt 0:00:00]} f3 {[%emt 0:00:00]} 69. Kxe4 {[%emt 0:00:00]} f2 {[%emt 0:00:00] normal} 0-1

[Event "GER-ch Youth U12w 2019"]
[Site "Willingen"]
[Date "2019.06.09"]
[Round "1.5"]
[White "Braeutigam, Katerina"]
[Black "Lieberwirth, Nele"]
[Result "1-0"]
[ECO "C40"]
[WhiteElo "1697"]
[BlackElo "1385"]
[Annotator "NA"]
[PlyCount "50"]
[EventDate "2019.06.07"]
[EventType "swiss"]
[EventRounds "9"]
[EventCountry "GER"]
[SourceTitle "playchess.com"]
[Source "ChessBase"]
[SourceQuality "1"]
[TimeControl "40/4500+30:900+30"]

1. e4 {[%emt 0:00:00]} e5 {[%emt 0:00:00]} 2. Nf3 {[%emt 0:00:00]} d5 {[%emt 0:00:00]} 3. exd5 {[%emt 0:00:00]} e4 {[%emt 0:00:00]} 4. Qe2 {[%emt 0:00:00]} Nf6 {[%emt 0:00:00]} 5. Nc3 {[%emt 0:00:00]} Bf5 {[%emt 0:00:00]} 6. d3 {[%emt 0:00:00]} Bb4 {[%emt 0:00:00]} 7. dxe4 {[%emt 0:03:24]} Bxc3+ {[%emt 0:00:00]} 8. bxc3 {[%emt 0:00:09]} Bxe4 {[%emt 0:00:00]} 9. c4 {[%emt 0:10:05]} O-O {[%emt 0:00:51]} 10. h3 {[%emt 0:02:26]} Re8 {[%emt 0:02:19]} 11. Be3 {[%emt 0:00:35]} Qd6 {[%emt 0:06:33]} 12. Qd1 {[%emt 0:01:17]} Qb4+ {[%emt 0:03:13]} 13. Nd2 {[%emt 0:08:43]} Nbd7 {[%emt 0:03:09]} 14. Rb1 {[%emt 0:05:04]} Qc3 {[%emt 0:06:37]} 15. Rb3 {[%emt 0:01:19]} Qxc2 {[%emt 0:03:40]} 16. Qxc2 {[%emt 0:00:17]} Bxc2 {[%emt 0:00:07]} 17. Rxb7 {[%emt 0:00:12]} a5 {[%emt 0:08:03]} 18. Rxc7 {[%emt 0:00:51]} Rab8 {[%emt 0:01:01]} 19. Be2 {[%emt 0:06:54]} Rb2 {[%emt 0:07:13]} 20. O-O {[%emt 0:03:36]} Rxa2 {[%emt 0:00:56]} 21. Ra7 {[%emt 0:00:59]} a4 {[%emt 0:02:58]} 22. Rc1 {[%emt 0:07:50]} Rb8 {[%emt 0:04:42]} 23. c5 {[%emt 0:03:14]} Ne5 {[%emt 0:06:48]} 24. d6 {[%emt 0:02:13]} Nc6 {[%emt 0:02:26]} 25. Rc7 {[%emt 0:01:05]} Nd8 {[%emt 0:03:03] normal} 1-0

[Event "GER-ch Youth U12w 2019"]
[Site "Willingen"]
[Date "2019.06.09"]
[Round "1.6"]
[White "Hoffmann, Sophia"]
[Black "Peglau, Dora"]
[Result "1-0"]
[ECO "D00"]
[WhiteElo "1347"]
[BlackElo "1336"]
[Annotator "NA"]
[PlyCount "55"]
[EventDate "2019.06.07"]
[EventType "swiss"]
[EventRounds "9"]
[EventCountry "GER"]
[SourceTitle "playchess.com"]
[Source "ChessBase"]
[SourceQuality "1"]
[TimeControl "40/4500+30:900+30"]

1. d4 {[%emt 0:00:00]} d5 {[%emt 0:00:00]} 2. Nc3 {[%emt 0:00:00]} Nf6 {[%emt 0:00:00]} 3. Bf4 {[%emt 0:00:00]} e6 {[%emt 0:00:00]} 4. e3 {[%emt 0:00:00]} Bd7 {[%emt 0:00:00]} 5. Bd3 {[%emt 0:00:00]} c5 {[%emt 0:00:00]} 6. Nf3 {[%emt 0:00:00]} Nc6 {[%emt 0:00:00]} 7. Nb5 {[%emt 0:00:00]} Rc8 {[%emt 0:00:00]} 8. Bd6 {[%emt 0:00:00]} c4 {[%emt 0:00:00]} 9. Bxf8 {[%emt 0:00:00]} Kxf8 {[%emt 0:00:00]} 10. Be2 {[%emt 0:00:00]} Qa5+ {[%emt 0:00:00]} 11. Nc3 {[%emt 0:00:00]} Ne4 {[%emt 0:00:00]} 12. O-O {[%emt 0:00:00]} Nxc3 {[%emt 0:00:00]} 13. bxc3 {[%emt 0:00:00]} Qxc3 {[%emt 0:00:00]} 14. Rb1 {[%emt 0:00:00]} Rb8 {[%emt 0:00:00]} 15. Ng5 {[%emt 0:01:01]} h6 {[%emt 0:00:00]} 16. Nh3 {[%emt 0:00:39]} Nb4 {[%emt 0:03:02]} 17. Bh5 {[%emt 0:07:25]} Ke7 {[%emt 0:06:19]} 18. Qg4 {[%emt 0:05:03]} Rhg8 {[%emt 0:03:09]} 19. Qh4+ {[%emt 0:03:07]} Kf8 {[%emt 0:03:30]} 20. Qf4 {[%emt 0:02:13]} Ke7 {[%emt 0:03:01]} 21. e4 {[%emt 0:09:00]} Rgf8 {[%emt 0:03:29]} 22. exd5 {[%emt 0:02:34]} Nxd5 {[%emt 0:00:41]} 23. Qe5 {[%emt 0:03:02]} Rg8 {[%emt 0:03:48]} 24. Rfe1 {[%emt 0:02:07]} Qxc2 {[%emt 0:07:24]} 25. Qxd5 {[%emt 0:01:19]} Bc6 {[%emt 0:06:30]} 26. Qc5+ {[%emt 0:01:11]} Ke8 {[%emt 0:01:01]} 27. Qd6 {[%emt 0:02:09]} Rd8 {[%emt 0:01:25]} 28. Rxe6# {[%emt 0:00:28] normal} 1-0

[Event "GER-ch Youth U12w 2019"]
[Site "Willingen"]
[Date "2019.06.09"]
[Round "1.7"]
[White "Roncea, Andrea-Alexandra"]
[Black "Irrgang, Natascha"]
[Result "1-0"]
[ECO "C50"]
[WhiteElo "1558"]
[BlackElo "1239"]
[Annotator "NA"]
[PlyCount "37"]
[EventDate "2019.06.07"]
[EventType "swiss"]
[EventRounds "9"]
[EventCountry "GER"]
[SourceTitle "playchess.com"]
[Source "ChessBase"]
[SourceQuality "1"]
[TimeControl "40/4500+30:900+30"]

1. e4 {[%emt 0:00:00]} e5 {[%emt 0:00:00]} 2. Nf3 {[%emt 0:00:00]} Nc6 {[%emt 0:00:00]} 3. Bc4 {[%emt 0:00:00]} Nf6 {[%emt 0:00:00]} 4. d3 {[%emt 0:00:00]} Bc5 {[%emt 0:00:00]} 5. Bb3 {[%emt 0:00:00]} d6 {[%emt 0:00:00]} 6. c3 {[%emt 0:00:00]} Bb6 {[%emt 0:00:00]} 7. O-O {[%emt 0:00:00]} Ne7 {[%emt 0:00:00]} 8. Nbd2 {[%emt 0:00:00]} c6 {[%emt 0:00:00]} 9. Nc4 {[%emt 0:00:00]} Bc7 {[%emt 0:00:00]} 10. a4 {[%emt 0:00:43]} a5 {[%emt 0:00:41]} 11. Re1 {[%emt 0:01:36]} O-O {[%emt 0:00:38]} 12. Ne3 {[%emt 0:09:43]} Re8 {[%emt 0:04:18]} 13. Nf1 {[%emt 0:05:25]} Ng6 {[%emt 0:02:50]} 14. Ng3 {[%emt 0:03:05]} b6 {[%emt 0:31:23]} 15. d4 {[%emt 0:04:16]} Bb7 {[%emt 0:08:13]} 16. Qc2 {[%emt 0:12:42]} d5 {[%emt 0:06:56]} 17. exd5 {[%emt 0:06:27]} Nxd5 {[%emt 0:01:22]} 18. dxe5 {[%emt 0:07:24]} Nxe5 {[%emt 0:05:37]} 19. Nd4 {[%emt 0:08:07] normal} 1-0

[Event "GER-ch Youth U12w 2019"]
[Site "Willingen"]
[Date "2019.06.09"]
[Round "1.8"]
[White "Vianden, Ella"]
[Black "Fischer, Darja"]
[Result "1-0"]
[ECO "B10"]
[WhiteElo "1328"]
[BlackElo "1480"]
[Annotator "NA"]
[PlyCount "65"]
[EventDate "2019.06.07"]
[EventType "swiss"]
[EventRounds "9"]
[EventCountry "GER"]
[SourceTitle "playchess.com"]
[Source "ChessBase"]
[SourceQuality "1"]
[TimeControl "40/4500+30:900+30"]

1. e4 {[%emt 0:00:00]} c6 {[%emt 0:00:00]} 2. Nf3 {[%emt 0:00:00]} d5 {[%emt 0:00:00]} 3. Nc3 {[%emt 0:00:00]} e6 {[%emt 0:00:00]} 4. Be2 {[%emt 0:00:00]} Bb4 {[%emt 0:00:00]} 5. d3 {[%emt 0:00:00]} d4 {[%emt 0:02:48]} 6. a3 {[%emt 0:01:02]} Bxc3+ {[%emt 0:03:10]} 7. bxc3 {[%emt 0:00:30]} dxc3 {[%emt 0:00:14]} 8. O-O {[%emt 0:06:40]} Ne7 {[%emt 0:03:23]} 9. Qe1 {[%emt 0:04:02]} Qa5 {[%emt 0:09:24]} 10. Bb2 {[%emt 0:05:23]} O-O {[%emt 0:06:42]} 11. Bxc3 {[%emt 0:07:08]} Qd8 {[%emt 0:05:12]} 12. Qd2 {[%emt 0:03:48]} b6 {[%emt 0:04:13]} 13. Rab1 {[%emt 0:10:29]} c5 {[%emt 0:07:56]} 14. h3 {[%emt 0:12:56]} Nbc6 {[%emt 0:04:30]} 15. Nh2 {[%emt 0:04:45]} Bb7 {[%emt 0:07:07]} 16. Ng4 {[%emt 0:03:41]} Nd4 {[%emt 0:07:25]} 17. Rfe1 {[%emt 0:05:58]} Ng6 {[%emt 0:08:11]} 18. a4 {[%emt 0:03:41]} f5 {[%emt 0:05:26]} 19. Bxd4 Qxd4 {[%emt 0:01:23]} 20. Ne3 {[%emt 0:05:28]} Qxa4 {[%emt 0:00:41]} 21. exf5 {[%emt 0:00:59]} exf5 {[%emt 0:00:16]} 22. Bf3 {[%emt 0:02:22]} Bxf3 {[%emt 0:00:36]} 23. gxf3 {[%emt 0:00:25]} Qh4 {[%emt 0:00:25]} 24. Ng2 {[%emt 0:03:54]} Qxh3 {[%emt 0:00:58]} 25. Qe3 {[%emt 0:01:02]} Rae8 {[%emt 0:02:39]} 26. Qd2 {[%emt 0:02:22]} Rxe1+ {[%emt 0:01:12]} 27. Rxe1 {[%emt 0:00:10]} Nh4 {[%emt 0:02:14]} 28. Nxh4 {[%emt 0:00:14]} Qxh4 {[%emt 0:00:04]} 29. c3 {[%emt 0:00:29]} Qh3 {[%emt 0:00:34]} 30. Qa2+ {[%emt 0:00:33]} Kh8 {[%emt 0:00:37]} 31. Qf7 {[%emt 0:00:52]} h6 {[%emt 0:01:00]} 32. Qxf8+ Kh7 {[%emt 0:00:05]} 33. Re7 {[%emt 0:01:08] normal} 1-0